Workbook

Sheet Ideal Calc
D1: The Ideal Gas Calculator | AA1: atm | AB1: mL | AC1: L*atm/mol/K | AD1: °C
AA2: torr | AB2: cm3 | AC2: J/mol/K | AD2: K
A3: The ideal gas calculator can solve for any one of the variables. If the mass or the molar mass of the gas are not used in a | AA3: mm | AB3: dm3
A4: problem, those input fields should be left preset to zero. If either the mass or the molar mass is assigned a nonzero value, a | AA4: cm | AB4: L
A5: determination of the zeroed value will be made. To select a unit of pressure, volume, or temperature, left click on the cell | AA5: kPa
A6: containing the unit and use the drop down list. All entries will be converted to match the units found in the gas constant, R.
A8: The formatting of the values are left to the user. To format a particular cell, right click on the cell containing the value and
A9: click on Format Cells. If you are interested in the actual value, simply click on the cell and all of the decimal places will
A10: be displayed in the Formula bar.
B12: P = | C12: 0.1480750293 | D12: atm
B13: V = | C13: 2 | D13: L
B14: n = | C14: 28 | D14: mol
B15: m = | C15: 1 | D15: g
B16: MM = | C16: 0.03571428731 | D16: g/mol
B17: R = | C17: 0 | D17: L*atm/mol/K
B18: T = | C18: 283 | D18: K

Sheet vdW Calc
A1: =POWER($F$27,3)-(($G$27/$B$27*GC*$I$27+$E$27*$D$27*POWER(10,-2))/$E$27)*$F$27^2+$C$27/$E$27*$F$27-$C$27/$E$27*$D$27*POWER(10,-2) -> 8.696305635e-05 | D1: The van der Waals Gas Calculator
A3: The calculator below can be used to calculate the van der Waals pressure, PV. The cells containing a comment
A4: indicator can be changed to the desired quantities.
A6: The van der Waals equation expressing P as a function of V is
B8: P - n•R•T/(V-n•b) + a•n2/V2 = 0
A10: Gas | B10: MM | C10: a | D10: b | E10: PV | F10: V | G10: m | H10: n | I10: T
B11: (g/mol) | C11: (atm•L2•mol-2) | D11: (10-2•L•mol-1) | E11: (atm) | F11: (L) | G11: (g) | H11: (mol) | I11: (K)
A12: Ar | B12: 39.95 | C12: 1.363 | D12: 3.219 | E12: =(H12*GC*I12/(F12-H12*D12*POWER(10,-2))-(C12*POWER(H12,2))/POWER(F12,2)) -> 63.65587839 | F12: 5 | G12: 500 | H12: =G12/B12 -> 12.51564456 | I12: 323
A13: CO2 | B13: 44.01 | C13: 3.64 | D13: 4.267 | E13: 47.93134502 | F13: 5 | G13: 500 | H13: 11.36105431 | I13: 323
A14: He | B14: 4 | C14: 0.057 | D14: 2.37 | E14: 1591.264571 | F14: 5 | G14: 500 | H14: 125 | I14: 323
A15: N2 | B15: 28.02 | C15: 1.408 | D15: 3.913 | E15: 92.06893374 | F15: 5 | G15: 500 | H15: 17.84439686 | I15: 323
A17: The calculator below can be used to calculate the van der Waals volume, VV. The cells containing a comment
A18: indicator can be changed to the desired quantities. To solve for VV, either Goal Seek or Solver could be
A19: used. Goal Seek is easier to use and is found under the Tools menu.
A21: The van der Waals equation expressing V as a function of P is
B23: V3 - (b + R•T/P)V2 + a/P•V - a•b/P = 0
A25: Gas | B25: MM | C25: a | D25: b | E25: PV | F25: VV | G25: m | H25: n | I25: T
B26: (g/mol) | C26: (atm•L2•mol-2) | D26: (10-2•L•mol-1) | E26: (atm) | F26: (L) | G26: (g) | H26: (mol) | I26: (K)
A27: Ar | B27: 39.95 | C27: 1.363 | D27: 3.219 | E27: 20 | F27: 15.33801932 | G27: 500 | H27: =G27/B27 -> 12.51564456 | I27: 298
A28: CO2 | B28: 44.01 | C28: 3.64 | D28: 4.267 | E28: 20 | F28: 13.9275065 | G28: 500 | H28: 11.36105431 | I28: 298
A29: He | B29: 4 | C29: 0.057 | D29: 2.37 | E29: 20 | F29: 152.9349314 | G29: 500 | H29: 125 | I29: 298
A30: N2 | B30: 28.02 | C30: 1.408 | D30: 3.913 | E30: 20 | F30: 21.86478826 | G30: 500 | H30: 17.84439686 | I30: 298

Sheet Gas Laws
E1: The Ideal and van der Waals Gas Laws
A3: An ideal gas is a hypothetical gas whose pressure, volume, and temperature values is completely described by the ideal gas equation.
A4: The equation of state for an ideal gas is given by:
B6: PV = nRT
A8: where R is the universal gas constant. R can take on different numerical values depending on the units. A very common value for R is
B10: 0.0821 | C10: L•atm/mol/K
A12: This value for R dictates that the pressure, P, be measured in atmospheres (atm), the volume, V, be measured in liters (L), n is the number
A13: of moles of gas, and T is always expressed as the absolute temperature, K.
A15: There are two differences between an ideal gas and a real (van der Waals) gas. The first difference is that the molecules making up a real
A16: gas have a certain volume of their own which decreases the accessible volume. The correction is to subtract this volume, called b, from the
A17: molar volume of the gas as shown below.
B19: nRT/(Vm - nb)
A21: The second correction is that intermolecular forces of attraction exist between neighboring gas molecules. Because it is reasonable to
A22: assume intermolecular forces should reduce the pressure, the correction factor is subtracted from the pressure as shown below.
B24: -na2/Vm2
A26: Combining the two expressions above gives the resulting van der Waals equation
B28: Pv = nRT/(Vm-nb) - na2/Vm2
A30: Each gas has its unique values of a and b which have been empirically derived.
A32: Another difference to note is that ideal gas isotherms are hyperbolic because P and V are inversely proportional. Van der Waals isotherms
A33: can be found in nonphysical regions of pressure when the computed pressures are negative. The fact that computed pressures can be
A34: negative indicates that van der Waals gases exhibit critical behavior. In these negative regions, the gas condenses to form a liquid. The
A35: critical behavior is more pronounced for regions of high pressure and low molar volume. Because an ideal gas is defined to have no
A36: intermolecular attractions, it cannot condense to a liquid nor exhibit any critical behavior.

Sheet P vs V
F1: Ideal Gas and van der Waals Isotherms for CO2
A3: As seen below, at high temperatures when a gas is expected to behave ideally, the agreement between ideal and van der Waals gases
A4: is very good. Most real gases behave ideally at high temperatures and low pressures. The high temperatures offset the intermolecular
A5: attractions and the low pressures nullify the effects of the gas molecules having a volume of their own. For lower temperatures and higher
A6: pressures, there are significant deviations between an ideal gas and a real gas.
A8: V | B8: Pi | C8: Pi | D8: Pi | N8: Pv | O8: Pv | P8: Pv
A9: (L) | B9: (atm) | C9: (atm) | D9: (atm) | N9: (atm) | O9: (atm) | P9: (atm)
A10: 0.02 | B10: =GC*120/A10 -> 492.6 | C10: =GC*250/A10 -> 1026.25 | D10: =GC*500/A10 -> 2052.5 | N10: =GC*120/(A10-0.04267)-3.592/POWER(A10,2) -> -9414.58315 | O10: =GC*250/(A10-0.04267)-3.592/POWER(A10,2) -> -9885.381562 | P10: =GC*500/(A10-0.04267)-3.592/POWER(A10,2) -> -10790.76312
A11: 0.04 | B11: 246.3 | C11: 513.125 | D11: 1026.25 | N11: -5934.88764 | O11: -9932.265918 | P11: -17619.53184
A12: 0.06 | B12: 164.2 | C12: 342.0833333 | D12: 684.1666667 | N12: -429.2838366 | O12: 186.5845996 | P12: 1370.946977
A13: 0.08 | B13: 123.15 | C13: 256.5625 | D13: 513.125 | N13: -297.3335789 | O13: -11.42412269 | P13: 538.4017546
A14: 0.1 | B14: 98.52 | C14: 205.25 | D14: 410.5 | N14: -187.3527996 | O14: -1.184999128 | P14: 356.8300017
A15: 0.12 | B15: 82.1 | C15: 171.0416667 | D15: 342.0833333 | N15: -122.0424013 | O15: 15.97647887 | P15: 281.3974022
A16: 0.14 | B16: 70.37142857 | C16: 146.6071429 | D16: 293.2142857 | N16: -82.04266151 | O16: 27.61520348 | P16: 238.4957131
A17: 0.16 | B17: 61.575 | C17: 128.28125 | D17: 256.5625 | N17: -56.34420545 | O17: 34.62144699 | P17: 209.555394
A18: 0.18 | B18: 54.73333333 | C18: 114.0277778 | D18: 228.0555556 | N18: -39.1245922 | O18: 38.59331357 | P18: 188.0508247
A19: 0.2 | B19: 49.26 | C19: 102.625 | D19: 205.25 | N19: -27.18002924 | O19: 40.65827242 | P19: 171.1165448
A20: 0.22 | B20: 44.78181818 | C20: 93.29545455 | D20: 186.5909091 | N20: -18.65744074 | O20: 41.52978082 | P20: 157.2744377
A21: 0.24 | B21: 41.05 | C21: 85.52083333 | D21: 171.0416667 | N21: -12.43459208 | O21: 41.6524702 | P21: 145.6660515
A22: 0.26 | B22: 37.89230769 | C22: 78.94230769 | D22: 157.8846154 | N22: -7.804111055 | O22: 41.30553787 | P22: 135.7471704
A23: 0.28 | B23: 35.18571429 | C23: 73.30357143 | D23: 146.6071429 | N23: -4.304507544 | O23: 40.66662969 | P23: 127.1495859
A24: 0.3 | B24: 32.84 | C24: 68.41666667 | D24: 136.8333333 | N24: -1.625641092 | O24: 39.85028476 | P24: 119.6116806
A25: 0.32 | B25: 30.7875 | C25: 64.140625 | D25: 128.28125 | N25: 0.4463404383 | O25: 38.931178 | P25: 112.940481
A26: 0.34 | B26: 28.97647059 | C26: 60.36764706 | D26: 120.7352941 | N26: 2.062236256 | O26: 37.95837859 | P26: 106.9894215
A27: 0.36 | B27: 27.36666667 | C27: 57.01388889 | D27: 114.0277778 | N27: 3.330495224 | O27: 36.96425188 | P27: 101.6445531
A28: 0.38 | B28: 25.92631579 | C28: 54.01315789 | D28: 108.0263158 | N28: 4.330475932 | O28: 35.97011664 | P28: 96.81557954
A29: 0.4 | B29: 24.63 | C29: 51.3125 | D29: 102.625 | N29: 5.121152716 | O29: 34.98990149 | P29: 92.42980298
A30: 0.42 | B30: 23.45714286 | C30: 48.86904762 | D30: 97.73809524 | N30: 5.746959496 | O30: 34.03254506 | P30: 88.42790191
A31: 0.44 | B31: 22.39090909 | C31: 46.64772727 | D31: 93.29545455 | N31: 6.241791021 | O31: 33.10359355 | P31: 84.76090611
A32: 0.46 | B32: 21.4173913 | C32: 44.61956522 | D32: 89.23913043 | N32: 6.631791979 | O32: 32.2062774 | P32: 81.38798013
A33: 0.48 | B33: 20.525 | C33: 42.76041667 | D33: 85.52083333 | N33: 6.937332951 | O33: 31.34224457 | P33: 78.27476693
A34: 0.5 | B34: 19.704 | C34: 41.05 | D34: 82.1 | N34: 7.174431067 | O34: 30.51206472 | P34: 75.39212945
A35: 0.52 | B35: 18.94615385 | C35: 39.47115385 | D35: 78.94230769 | N35: 7.355785269 | O35: 29.71557828 | P35: 72.71518024
A36: 0.54 | B36: 18.24444444 | C36: 38.00925926 | D36: 76.01851852 | N36: 7.491540078 | O36: 28.95213968 | P36: 70.22252353
A37: 0.56 | B37: 17.59285714 | C37: 36.65178571 | D37: 73.30357143 | N37: 7.589855506 | O37: 28.22078741 | P37: 67.89565645
A38: 0.58 | B38: 16.9862069 | C38: 35.38793103 | D38: 70.77586207 | N38: 7.657336768 | O38: 27.52036321 | P38: 65.71849099
A39: 0.6 | B39: 16.42 | C39: 34.20833333 | D39: 68.41666667 | N39: 7.69936144 | O39: 26.84959559 | P39: 63.67696896
A40: 0.62 | B40: 15.89032258 | C40: 33.10483871 | D40: 66.20967742 | N40: 7.720330771 | O40: 26.20715806 | P40: 61.75874901
A41: 0.64 | B41: 15.39375 | C41: 32.0703125 | D41: 64.140625 | N41: 7.72386436 | O41: 25.59170961 | P41: 59.95295046
A42: 0.66 | B42: 14.92727273 | C42: 31.09848485 | D42: 62.1969697 | N42: 7.712952118 | O42: 25.00192236 | P42: 58.24994206
A43: 0.68 | B43: 14.48823529 | C43: 30.18382353 | D43: 60.36764706 | N43: 7.690073754 | O43: 24.43650025 | P43: 56.64116659
A44: 0.7 | B44: 14.07428571 | C44: 29.32142857 | D44: 58.64285714 | N44: 7.657293373 | O44: 23.89419113 | P44: 55.1189945
A45: 0.72 | B45: 13.68333333 | C45: 28.50694444 | D45: 57.01388889 | N45: 7.616334826 | O45: 23.37379426 | P45: 53.67660087
A46: 0.74 | B46: 13.31351351 | C46: 27.73648649 | D46: 55.47297297 | N46: 7.568642103 | O46: 22.8741646 | P46: 52.3078617
A47: 0.76 | B47: 12.96315789 | C47: 27.00657895 | D47: 54.01315789 | N47: 7.515427999 | O47: 22.39421461 | P47: 51.00726579
A48: 0.78 | B48: 12.63076923 | C48: 26.31410256 | D48: 52.62820513 | N48: 7.457713539 | O48: 21.9329146 | P48: 49.76983972
A49: 0.8 | B49: 12.315 | C49: 25.65625 | D49: 51.3125 | N49: 7.396360074 | O49: 21.48929182 | P49: 48.59108364
A50: 0.82 | B50: 12.01463415 | C50: 25.0304878 | D50: 50.06097561 | N50: 7.332095536 | O50: 21.06242886 | P50: 47.46691601
A51: 0.84 | B51: 11.72857143 | C51: 24.43452381 | D51: 48.86904762 | N51: 7.265536 | O51: 20.65146153 | P51: 46.393626
A52: 0.86 | B52: 11.45581395 | C52: 23.86627907 | D52: 47.73255814 | N52: 7.197203479 | O52: 20.25557647 | P52: 45.36783223
A53: 0.88 | B53: 11.19545455 | C53: 23.32386364 | D53: 46.64772727 | N53: 7.127540654 | O53: 19.87400859 | P53: 44.38644694
A54: 0.9 | B54: 10.94666667 | C54: 22.80555556 | D54: 45.61111111 | N54: 7.056923123 | O54: 19.5060384 | P54: 43.4466447
A55: 0.92 | B55: 10.70869565 | C55: 22.30978261 | D55: 44.61956522 | N55: 6.985669615 | O55: 19.15098939 | P55: 42.54583512
A56: 0.94 | B56: 10.48085106 | C56: 21.83510638 | D56: 43.67021277 | N56: 6.914050539 | O56: 18.80822548 | P56: 41.68163883
A57: 0.96 | B57: 10.2625 | C57: 21.38020833 | D57: 42.76041667 | N57: 6.842295163 | O57: 18.47714849 | P57: 40.85186642
A58: 0.98 | B58: 10.05306122 | C58: 20.94387755 | D58: 41.8877551 | N58: 6.770597653 | O58: 18.15719576 | P58: 40.0544998
A59: 1 | B59: 9.852 | C59: 20.525 | D59: 41.05 | N59: 6.699122184 | O59: 17.84783788 | P59: 39.28767576

Sheet Z vs P (1000K)
F1: Compressiblity Factor of CO2 at 1000K
A3: The ideal gas law is valid for all gases at sufficiently low pressures. As the pressure is increased, the deviations from the ideal
A4: law can be displayed graphically by plotting PV/RT as a function of pressure as shown below. The quantity PV/RT is known as
A5: the compressibility factor, Z. For an ideal gas, Z = 1 under all conditions. For real gases, Z = 1 at low pressure but deviations
A6: start to appear as the pressure is increased. The magnitude of the deviation depends on the temperature and nature of the gas.
A7: The closer the gas is to the point at which it liquifies, the greater the deviation.
A9: It makes sense that the ideal and van der Waals isotherms agree at high temperatures. At higher temperatures, the molecules
A10: are moving much more rapidly which weakens the intermolecular forces.
A12: V | B12: Pv | C12: Zv | D12: Pi | E12: Zi
A13: (L) | B13: (atm) | D13: (atm)
A14: 0.02 | B14: =GC*1000/(A14-0.04267)-3.592/POWER(A14,2) -> -12601.52625 | C14: =B14*A14/GC/1000 -> -3.069799329 | D14: =GC*1000/A14 -> 4105 | E14: =D14*A14/GC/1000 -> 1
A15: 0.04 | B15: -32994.06367 | C15: -16.07506147 | D15: 2052.5 | E15: 1
A16: 0.06 | B16: 3739.671732 | C16: 2.733012228 | D16: 1368.333333 | E16: 1
A17: 0.08 | B17: 1638.053509 | C17: 1.596154455 | D17: 1026.25 | E17: 1
A18: 0.1 | B18: 1072.860003 | C18: 1.306772233 | D18: 821 | E18: 1
A19: 0.12 | B19: 812.2392488 | C19: 1.187195004 | D19: 684.1666667 | E19: 1
A20: 0.14 | B20: 660.2567323 | C20: 1.12589455 | D20: 586.4285714 | E20: 1
A21: 0.16 | B21: 559.4232879 | C21: 1.090228089 | D21: 513.125 | E21: 1
A22: 0.18 | B22: 486.9658469 | C22: 1.067647411 | D22: 456.1111111 | E22: 1
A23: 0.2 | B23: 432.0330897 | C23: 1.05245576 | D23: 410.5 | E23: 1
A24: 0.22 | B24: 388.7637514 | C24: 1.041754267 | D24: 373.1818182 | E24: 1
A25: 0.24 | B25: 353.6932141 | C25: 1.03393875 | D25: 342.0833333 | E25: 1
A26: 0.26 | B26: 324.6304355 | C26: 1.02806228 | D26: 315.7692308 | E26: 1
A27: 0.28 | B27: 300.1154984 | C27: 1.023536413 | D27: 293.2142857 | E27: 1
A28: 0.3 | B28: 279.1344724 | C28: 1.019979802 | D28: 273.6666667 | E28: 1
A29: 0.32 | B29: 260.959087 | C29: 1.017136514 | D29: 256.5625 | E29: 1
A30: 0.34 | B30: 245.0515074 | C30: 1.014829629 | D30: 241.4705882 | E30: 1
A31: 0.36 | B31: 231.0051557 | C31: 1.012933691 | D31: 228.0555556 | E31: 1
A32: 0.38 | B32: 218.5065053 | C32: 1.011357759 | D32: 216.0526316 | E32: 1
A33: 0.4 | B33: 207.309606 | C33: 1.010034621 | D33: 205.25 | E33: 1
A34: 0.42 | B34: 197.2186156 | C34: 1.008913746 | D34: 195.4761905 | E34: 1
A35: 0.44 | B35: 188.0755312 | C35: 1.007956562 | D35: 186.5909091 | E35: 1
A36: 0.46 | B36: 179.7513856 | C36: 1.00713322 | D36: 178.4782609 | E36: 1
A37: 0.48 | B37: 172.1398116 | C37: 1.006420336 | D37: 171.0416667 | E37: 1
A38: 0.5 | B38: 165.1522589 | C38: 1.005799384 | D38: 164.2 | E38: 1
A39: 0.52 | B39: 158.7143841 | C39: 1.005255539 | D39: 157.8846154 | E39: 1
A40: 0.54 | B40: 152.7632912 | C40: 1.004776824 | D40: 152.037037 | E40: 1
A41: 0.56 | B41: 147.2453945 | C41: 1.004353483 | D41: 146.6071429 | E41: 1
A42: 0.58 | B42: 142.1147466 | C42: 1.003977503 | D42: 141.5517241 | E42: 1
A43: 0.6 | B43: 137.3317157 | C43: 1.003642258 | D43: 136.8333333 | E43: 1
A44: 0.62 | B44: 132.8619309 | C44: 1.003342231 | D44: 132.4193548 | E44: 1
A45: 0.64 | B45: 128.6754322 | C45: 1.003072796 | D45: 128.28125 | E45: 1
A46: 0.66 | B46: 124.7459815 | C46: 1.002830058 | D46: 124.3939394 | E46: 1
A47: 0.68 | B47: 121.0504993 | C47: 1.002610713 | D47: 120.7352941 | E47: 1
A48: 0.7 | B48: 117.5686012 | C48: 1.002411947 | D48: 117.2857143 | E48: 1
A49: 0.72 | B49: 114.2822141 | C49: 1.002231354 | D49: 114.0277778 | E49: 1
A50: 0.74 | B50: 111.1752559 | C50: 1.002066862 | D50: 110.9459459 | E50: 1
A51: 0.76 | B51: 108.2333681 | C51: 1.001916684 | D51: 108.0263158 | E51: 1
A52: 0.78 | B52: 105.44369 | C52: 1.001779271 | D52: 105.2564103 | E52: 1
A53: 0.8 | B53: 102.7946673 | C53: 1.001653274 | D53: 102.625 | E53: 1
A54: 0.82 | B54: 100.2758903 | C54: 1.001537516 | D54: 100.1219512 | E54: 1
A55: 0.84 | B55: 97.87795495 | C55: 1.001430964 | D55: 97.73809524 | E55: 1
A56: 0.86 | B56: 95.59234375 | C56: 1.001332712 | D56: 95.46511628 | E56: 1
A57: 0.88 | B57: 93.41132363 | C57: 1.001241959 | D57: 93.29545455 | E57: 1
A58: 0.9 | B58: 91.3278573 | C58: 1.001157997 | D58: 91.22222222 | E58: 1
A59: 0.92 | B59: 89.33552657 | C59: 1.0010802 | D59: 89.23913043 | E59: 1
A60: 0.94 | B60: 87.42846553 | C60: 1.00100801 | D60: 87.34042553 | E60: 1
A61: 0.96 | B61: 85.60130228 | C61: 1.000940928 | D61: 85.52083333 | E61: 1
A62: 0.98 | B62: 83.84910789 | C62: 1.000878511 | D62: 83.7755102 | E62: 1
A63: 1 | B63: 82.16735153 | C63: 1.00082036 | D63: 82.1 | E63: 1

Sheet Z vs P (500K)
F1: Compressiblity Factor of CO2 at 500K
A3: For 500 K, the Z for both the ideal and van der Waals gas agree very closely. However, it can be seen that with
A4: increasing pressure, the deviation starts to get larger.
A6: V | B6: Pv | C6: Zv | D6: Pi | E6: Zi
A7: (L) | B7: (atm) | D7: (atm)
A8: 0.02 | B8: =GC*500/(A8-0.04267)-3.592/POWER(A8,2) -> -10790.76312 | C8: =B8*A8/GC/500 -> -5.257375456 | D8: =GC*500/A8 -> 2052.5 | E8: =D8*A8/GC/500 -> 1
A9: 0.04 | B9: -17619.53184 | C9: -17.16884953 | D9: 1026.25 | E9: 1
A10: 0.06 | B10: 1370.946977 | C10: 2.003820186 | D10: 684.1666667 | E10: 1
A11: 0.08 | B11: 538.4017546 | C11: 1.049260423 | D11: 513.125 | E11: 1
A12: 0.1 | B12: 356.8300017 | C12: 0.8692570079 | D12: 410.5 | E12: 1
A13: 0.12 | B13: 281.3974022 | C13: 0.8225989833 | D13: 342.0833333 | E13: 1
A14: 0.14 | B14: 238.4957131 | C14: 0 | D14: 293.2142857 | E14: 1
A15: 0.16 | B15: 209.555394 | C15: 0 | D15: 256.5625 | E15: 1
A16: 0.18 | B16: 188.0508247 | C16: 0.0821 | D16: 228.0555556 | E16: 1
A17: 0.2 | B17: 171.1165448 | C17: =B17*A17/GC/500 -> 0.8336981478 | D17: 205.25 | E17: 1
A18: 0.22 | B18: 157.2744377 | C18: 0.8428837098 | D18: 186.5909091 | E18: 1
A19: 0.24 | B19: 145.6660515 | C19: 0.8516407396 | D19: 171.0416667 | E19: 1
A20: 0.26 | B20: 135.7471704 | C20: 0.8597871938 | D20: 157.8846154 | E20: 1
A21: 0.28 | B21: 127.1495859 | C21: 0.8672809758 | D21: 146.6071429 | E21: 1
A22: 0.3 | B22: 119.6116806 | C22: 0.8741413932 | D22: 136.8333333 | E22: 1
A23: 0.32 | B23: 112.940481 | C23: 0.8804130065 | D23: 128.28125 | E23: 1
A24: 0.34 | B24: 106.9894215 | C24: 0.8861486802 | D24: 120.7352941 | E24: 1
A25: 0.36 | B25: 101.6445531 | C25: 0.8914016841 | D25: 114.0277778 | E25: 1
A26: 0.38 | B26: 96.81557954 | C26: 0.8962221736 | D26: 108.0263158 | E26: 1
A27: 0.4 | B27: 92.42980298 | C27: 0.9006558147 | D27: 102.625 | E27: 1
A28: 0.42 | B28: 88.42790191 | C28: 0.9047434544 | D28: 97.73809524 | E28: 1
A29: 0.44 | B29: 84.76090611 | C29: 0.9085212836 | D29: 93.29545455 | E29: 1
A30: 0.46 | B30: 81.38798013 | C30: 0.9120212146 | D30: 89.23913043 | E30: 1
A31: 0.48 | B31: 78.27476693 | C31: 0.9152713307 | D31: 85.52083333 | E31: 1
A32: 0.5 | B32: 75.39212945 | C32: 0.9182963392 | D32: 82.1 | E32: 1
A33: 0.52 | B33: 72.71518024 | C33: 0.9211179957 | D33: 78.94230769 | E33: 1
A34: 0.54 | B34: 70.22252353 | C34: 0.9237554861 | D34: 76.01851852 | E34: 1
A35: 0.56 | B35: 67.89565645 | C35: 0.9262257639 | D35: 73.30357143 | E35: 1
A36: 0.58 | B36: 65.71849099 | C36: 0.9285438435 | D36: 70.77586207 | E36: 1
A37: 0.6 | B37: 63.67696896 | C37: 0.9307230542 | D37: 68.41666667 | E37: 1
A38: 0.62 | B38: 61.75874901 | C38: 0.9327752591 | D38: 66.20967742 | E38: 1
A39: 0.64 | B39: 59.95295046 | C39: 0.9347110425 | D39: 64.140625 | E39: 1
A40: 0.66 | B40: 58.24994206 | C40: 0.9365398723 | D40: 62.1969697 | E40: 1
A41: 0.68 | B41: 56.64116659 | C41: 0.9382702384 | D41: 60.36764706 | E41: 1
A42: 0.7 | B42: 55.1189945 | C42: 0.9399097722 | D42: 58.64285714 | E42: 1
A43: 0.72 | B43: 53.67660087 | C43: 0.9414653502 | D43: 57.01388889 | E43: 1
A44: 0.74 | B44: 52.3078617 | C44: 0.9429431829 | D44: 55.47297297 | E44: 1
A45: 0.76 | B45: 51.00726579 | C45: 0.9443488915 | D45: 54.01315789 | E45: 1
A46: 0.78 | B46: 49.76983972 | C46: 0.9456875758 | D46: 52.62820513 | E46: 1
A47: 0.8 | B47: 48.59108364 | C47: 0.9469638712 | D47: 51.3125 | E47: 1
A48: 0.82 | B48: 47.46691601 | C48: 0.9481820007 | D48: 50.06097561 | E48: 1
A49: 0.84 | B49: 46.393626 | C49: 0.9493458183 | D49: 48.86904762 | E49: 1
A50: 0.86 | B50: 45.36783223 | C50: 0.9504588482 | D50: 47.73255814 | E50: 1
A51: 0.88 | B51: 44.38644694 | C51: 0.9515243193 | D51: 46.64772727 | E51: 1
A52: 0.9 | B52: 43.4466447 | C52: 0.9525451944 | D52: 45.61111111 | E52: 1
A53: 0.92 | B53: 42.54583512 | C53: 0.9535241975 | D53: 44.61956522 | E53: 1
A54: 0.94 | B54: 41.68163883 | C54: 0.9544638368 | D54: 43.67021277 | E54: 1
A55: 0.96 | B55: 40.85186642 | C55: 0.9553664254 | D55: 42.76041667 | E55: 1
A56: 0.98 | B56: 40.0544998 | C56: 0.9562341 | D56: 41.8877551 | E56: 1
A57: 1 | B57: 39.28767576 | C57: 0.9570688371 | D57: 41.05 | E57: 1

Sheet Z vs P (250K)
F1: Compressiblity Factor of CO2 at 250K
A3: For 250 K and 125 K there is virtually no agreement between the two types of gas.
A5: V | B5: Pv | C5: Zv | D5: Pi | E5: Zi
A6: (L) | B6: (atm) | D6: (atm)
A7: 0.02 | B7: =GC*250/(A7-0.04267)-3.592/POWER(A7,2) -> -9885.381562 | C7: =B7*A7/GC/250 -> -9.632527709 | D7: =GC*250/A7 -> 1026.25 | E7: =D7*A7/GC/250 -> 1
A8: 0.04 | B8: -9932.265918 | C8: -19.35642566 | D8: 513.125 | E8: 1
A9: 0.06 | B9: 186.5845996 | C9: 0.5454361012 | D9: 342.0833333 | E9: 1
A10: 0.08 | B10: -11.42412269 | C10: -0.0445276402 | D10: 256.5625 | E10: 1
A11: 0.1 | B11: -1.184999128 | C11: -0.005773442767 | D11: 205.25 | E11: 1
A12: 0.12 | B12: 15.97647887 | C12: 0.09340694103 | D12: 171.0416667 | E12: 1
A13: 0.14 | B13: 27.61520348 | C13: 0.1883619239 | D13: 146.6071429 | E13: 1
A14: 0.16 | B14: 34.62144699 | C14: 0.2698870411 | D14: 128.28125 | E14: 1
A15: 0.18 | B15: 38.59331357 | C15: 0.3384553687 | D15: 114.0277778 | E15: 1
A16: 0.2 | B16: 40.65827242 | C16: 0.3961829225 | D16: 102.625 | E16: 1
A17: 0.22 | B17: 41.52978082 | C17: 0.4451425959 | D17: 93.29545455 | E17: 1
A18: 0.24 | B18: 41.6524702 | C18: 0.4870447185 | D18: 85.52083333 | E18: 1
A19: 0.26 | B19: 41.30553787 | C19: 0.5232370205 | D19: 78.94230769 | E19: 1
A20: 0.28 | B20: 40.66662969 | C20: 0.5547701005 | D20: 73.30357143 | E20: 1
A21: 0.3 | B21: 39.85028476 | C21: 0.5824645763 | D21: 68.41666667 | E21: 1
A22: 0.32 | B22: 38.931178 | C22: 0.6069659907 | D22: 64.140625 | E22: 1
A23: 0.34 | B23: 37.95837859 | C23: 0.628786783 | D23: 60.36764706 | E23: 1
A24: 0.36 | B24: 36.96425188 | C24: 0.64833767 | D24: 57.01388889 | E24: 1
A25: 0.38 | B25: 35.97011664 | C25: 0.6659510023 | D25: 54.01315789 | E25: 1
A26: 0.4 | B26: 34.98990149 | C26: 0.681898202 | D26: 51.3125 | E26: 1
A27: 0.42 | B27: 34.03254506 | C27: 0.6964028709 | D27: 48.86904762 | E27: 1
A28: 0.44 | B28: 33.10359355 | C28: 0.7096507266 | D28: 46.64772727 | E28: 1
A29: 0.46 | B29: 32.2062774 | C29: 0.7217972036 | D29: 44.61956522 | E29: 1
A30: 0.48 | B30: 31.34224457 | C30: 0.7329733201 | D30: 42.76041667 | E30: 1
A31: 0.5 | B31: 30.51206472 | C31: 0.7432902491 | D31: 41.05 | E31: 1
A32: 0.52 | B32: 29.71557828 | C32: 0.752842909 | D32: 39.47115385 | E32: 1
A33: 0.54 | B33: 28.95213968 | C33: 0.7617128101 | D33: 38.00925926 | E33: 1
A34: 0.56 | B34: 28.22078741 | C34: 0.7699703263 | D34: 36.65178571 | E34: 1
A35: 0.58 | B35: 27.52036321 | C35: 0.7776765244 | D35: 35.38793103 | E35: 1
A36: 0.6 | B36: 26.84959559 | C36: 0.7848846458 | D36: 34.20833333 | E36: 1
A37: 0.62 | B37: 26.20715806 | C37: 0.7916413154 | D37: 33.10483871 | E37: 1
A38: 0.64 | B38: 25.59170961 | C38: 0.7979875346 | D38: 32.0703125 | E38: 1
A39: 0.66 | B39: 25.00192236 | C39: 0.803959501 | D39: 31.09848485 | E39: 1
A40: 0.68 | B40: 24.43650025 | C40: 0.8095892897 | D40: 30.18382353 | E40: 1
A41: 0.7 | B41: 23.89419113 | C41: 0.8149054221 | D41: 29.32142857 | E41: 1
A42: 0.72 | B42: 23.37379426 | C42: 0.8199333432 | D42: 28.50694444 | E42: 1
A43: 0.74 | B43: 22.8741646 | C43: 0.8246958247 | D43: 27.73648649 | E43: 1
A44: 0.76 | B44: 22.39421461 | C44: 0.8292133059 | D44: 27.00657895 | E44: 1
A45: 0.78 | B45: 21.9329146 | C45: 0.8335041846 | D45: 26.31410256 | E45: 1
A46: 0.8 | B46: 21.48929182 | C46: 0.8375850649 | D46: 25.65625 | E46: 1
A47: 0.82 | B47: 21.06242886 | C47: 0.8414709701 | D47: 25.0304878 | E47: 1
A48: 0.84 | B48: 20.65146153 | C48: 0.8451755265 | D48: 24.43452381 | E48: 1
A49: 0.86 | B49: 20.25557647 | C49: 0.8487111214 | D49: 23.86627907 | E49: 1
A50: 0.88 | B50: 19.87400859 | C50: 0.8520890408 | D50: 23.32386364 | E50: 1
A51: 0.9 | B51: 19.5060384 | C51: 0.8553195888 | D51: 22.80555556 | E51: 1
A52: 0.92 | B52: 19.15098939 | C52: 0.858412192 | D52: 22.30978261 | E52: 1
A53: 0.94 | B53: 18.80822548 | C53: 0.861375491 | D53: 21.83510638 | E53: 1
A54: 0.96 | B54: 18.47714849 | C54: 0.8642174201 | D54: 21.38020833 | E54: 1
A55: 0.98 | B55: 18.15719576 | C55: 0.8669452785 | D55: 20.94387755 | E55: 1
A56: 1 | B56: 17.84783788 | C56: 0.8695657921 | D56: 20.525 | E56: 1

Sheet Z vs P (125K)
F1: Compressiblity Factor of CO2 at 125K
A3: For 125 K and 250 K there is virtually no agreement between the two types of gas.
A5: V | B5: Pv | C5: Zv | D5: Pi | E5: Zi
A6: (L) | B6: (atm) | D6: (atm)
A7: 0.02 | B7: =GC*125/(A7-0.04267)-3.592/POWER(A7,2) -> -9432.690781 | C7: =B7*A7/GC/125 -> -18.38283222 | D7: =GC*125/A7 -> 513.125 | E7: =D7*A7/GC/125 -> 1
A8: 0.04 | B8: -6088.632959 | C8: -23.73157791 | D8: 256.5625 | E8: 1
A9: 0.06 | B9: -405.5965891 | C9: -2.371332068 | D9: 171.0416667 | E9: 1
A10: 0.08 | B10: -286.3370613 | C10: -2.232103767 | D10: 128.28125 | E10: 1
A11: 0.1 | B11: -180.1924996 | C11: -1.755834344 | D11: 102.625 | E11: 1
A12: 0.12 | B12: -116.7339828 | C12: -1.364977143 | D12: 85.52083333 | E12: 1
A13: 0.14 | B13: -77.82505132 | C13: -1.061681577 | D13: 73.30357143 | E13: 1
A14: 0.16 | B14: -52.84552651 | C14: -0.8239010223 | D14: 64.140625 | E14: 1
A15: 0.18 | B15: -36.13544198 | C15: -0.6338006876 | D15: 57.01388889 | E15: 1
A16: 0.2 | B16: -24.57086379 | C16: -0.4788475282 | D16: 51.3125 | E16: 1
A17: 0.22 | B17: -16.34254761 | C17: -0.350339632 | D17: 46.64772727 | E17: 1
A18: 0.24 | B18: -10.35432046 | C18: -0.2421473237 | D18: 42.76041667 | E18: 1
A19: 0.26 | B19: -5.915278404 | C19: -0.1498633262 | D19: 39.47115385 | E19: 1
A20: 0.28 | B20: -2.57484842 | C20: -0.07025164995 | D20: 36.65178571 | E20: 1
A21: 0.3 | B21: -0.03041317461 | C21: -0.0008890574794 | D21: 34.20833333 | E21: 1
A22: 0.32 | B22: 1.926526498 | C22: 0.06007195902 | D22: 32.0703125 | E22: 1
A23: 0.34 | B23: 3.442857115 | C23: 0.1140629884 | D23: 30.18382353 | E23: 1
A24: 0.36 | B24: 4.624101249 | C24: 0.1622096419 | D24: 28.50694444 | E24: 1
A25: 0.38 | B25: 5.54738519 | C25: 0.2054086599 | D25: 27.00657895 | E25: 1
A26: 0.4 | B26: 6.269950746 | C26: 0.2443829767 | D26: 25.65625 | E26: 1
A27: 0.42 | B27: 6.834866633 | C27: 0.2797217039 | D27: 24.43452381 | E27: 1
A28: 0.44 | B28: 7.274937272 | C28: 0.3119096127 | D28: 23.32386364 | E28: 1
A29: 0.46 | B29: 7.615426034 | C29: 0.3413491815 | D29: 22.30978261 | E29: 1
A30: 0.48 | B30: 7.875983398 | C30: 0.368377299 | D30: 21.38020833 | E30: 1
A31: 0.5 | B31: 8.072032362 | C31: 0.3932780688 | D31: 20.525 | E31: 1
A32: 0.52 | B32: 8.215777308 | C32: 0.4162927357 | D32: 19.73557692 | E32: 1
A33: 0.54 | B33: 8.316947755 | C33: 0.437627458 | D33: 19.00462963 | E33: 1
A34: 0.56 | B34: 8.383352887 | C34: 0.4574594511 | D34: 18.32589286 | E34: 1
A35: 0.58 | B35: 8.421299324 | C35: 0.4759418863 | D35: 17.69396552 | E35: 1
A36: 0.6 | B36: 8.435908907 | C36: 0.4932078289 | D36: 17.10416667 | E36: 1
A37: 0.62 | B37: 8.43136259 | C37: 0.5093734281 | D37: 16.55241935 | E37: 1
A38: 0.64 | B38: 8.411089178 | C38: 0.5245405187 | D38: 16.03515625 | E38: 1
A39: 0.66 | B39: 8.377912512 | C39: 0.5387987584 | D39: 15.54924242 | E39: 1
A40: 0.68 | B40: 8.334167081 | C40: 0.5522273925 | D40: 15.09191176 | E40: 1
A41: 0.7 | B41: 8.281789441 | C41: 0.5648967219 | D41: 14.66071429 | E41: 1
A42: 0.72 | B42: 8.222390958 | C42: 0.5768693291 | D42: 14.25347222 | E42: 1
A43: 0.74 | B43: 8.157316045 | C43: 0.5882011083 | D43: 13.86824324 | E43: 1
A44: 0.76 | B44: 8.087689023 | C44: 0.5989421347 | D44: 13.50328947 | E44: 1
A45: 0.78 | B45: 8.014452041 | C45: 0.6091374024 | D45: 13.15705128 | E45: 1
A46: 0.8 | B46: 7.938395911 | C46: 0.6188274522 | D46: 12.828125 | E46: 1
A47: 0.82 | B47: 7.860185279 | C47: 0.628048909 | D47: 12.5152439 | E47: 1
A48: 0.84 | B48: 7.780379289 | C48: 0.636834943 | D48: 12.2172619 | E48: 1
A49: 0.86 | B49: 7.699448594 | C49: 0.6452156678 | D49: 11.93313953 | E49: 1
A50: 0.88 | B50: 7.617789421 | C50: 0.6532184838 | D50: 11.66193182 | E50: 1
A51: 0.9 | B51: 7.535735249 | C51: 0.6608683775 | D51: 11.40277778 | E51: 1
A52: 0.92 | B52: 7.45356653 | C52: 0.668188181 | D52: 11.1548913 | E52: 1
A53: 0.94 | B53: 7.371518806 | C53: 0.6751987993 | D53: 10.91755319 | E53: 1
A54: 0.96 | B54: 7.289789521 | C54: 0.6819194095 | D54: 10.69010417 | E54: 1
A55: 0.98 | B55: 7.208543734 | C55: 0.6883676355 | D55: 10.47193878 | E55: 1
A56: 1 | B56: 7.127918941 | C56: 0.6945597019 | D56: 10.2625 | E56: 1
